bitfinex/quotes_SOLUSD_20250609
["timestamp","ask_amount","ask_price","bid_price","bid_amount"]
[1749467174439,15.58883074,155.44,155.41,18.64964886]
[1749467175602,15.58883074,155.45,155.41,18.64964886]
[1749467182042,15.58883074,155.44,155.42,0.28432314]
[1749467182549,6.43303872,155.45,155.42,0.28432314]
[1749467183416,15.58883074,155.46,155.42,18.933972]
[1749467183623,22.02144523,155.46,155.42,18.933972]
[1749467184123,22.02144523,155.46,155.42,0.28432314]
[1749467184318,6.43261449,155.46,155.38,44.7055]
[1749467184551,15.58883074,155.4,155.38,18.64964886]
[1749467184848,15.58883074,155.41,155.38,18.64964886]
[1749467185048,15.58883074,155.39,155.34,26.9788827]
[1749467185208,15.58883074,155.39,155.35,39.76]
[1749467185414,15.58883074,155.39,155.34,26.9788827]
[1749467185617,15.58883074,155.39,155.35,18.933972]
[1749467185814,22.02436389,155.39,155.35,18.933972]
[1749467186036,15.58883074,155.37,155.35,18.64964886]
[1749467186347,6.43553315,155.39,155.36,0.14216157]
[1749467186654,6.43553315,155.39,155.35,18.64964886]
[1749467186942,6.43553315,155.39,155.36,0.14216157]
[1749467187314,16.08569002,155.42,155.36,0.14216157]
[1749467187315,22.51986837,155.42,155.36,0.14216157]
[1749467191241,9.57604193,155.37,155.36,0.14216157]
[1749467191448,22.51986837,155.42,155.36,0.28432314]
[1749467191630,9.57604193,155.39,155.36,0.28432314]
[1749467192748,9.57604193,155.38,155.36,0.28432314]
[1749467194240,9.57604193,155.37,155.36,0.14216157]
[1749467194444,9.57604193,155.37,155.35,18.64964886]
[1749467194644,9.57604193,155.36,155.32,18.933972]
[1749467194847,9.57604193,155.35,155.32,18.933972]
[1749467195434,9.57604193,155.36,155.32,28.51001393]
[1749467195841,16.01270579,155.36,155.32,28.51001393]
[1749467196441,6.43583472,155.38,155.32,25.37221257]
[1749467196635,9.57604193,155.37,155.33,0.28432314]
[1749467197042,9.57604193,155.36,155.33,0.28432314]
[1749467198853,9.57604193,155.35,155.31,18.64964886]
[1749467199061,9.57604193,155.35,155.31,28.22569079]
[1749467199254,16.01304674,155.36,155.32,0.14216157]
[1749467199631,9.57604193,155.35,155.32,0.14216157]
[1749467200746,16.01304674,155.36,155.32,9.7182035]
[1749467201147,6.43700481,155.36,155.32,9.7182035]
[1749467201346,16.01304674,155.36,155.32,9.7182035]
[1749467201735,16.01304674,155.36,155.32,0.14216157]
[1749467201931,6.43700481,155.36,155.32,9.86036507]
[1749467202132,10.42,155.39,155.36,18.64964886]
[1749467202357,19.99604193,155.39,155.36,18.64964886]
[1749467203063,6.4346986,155.41,155.36,18.64964886]
[1749467203064,9.57604193,155.4,155.36,18.64964886]
[1749467204546,9.57604193,155.4,155.37,18.64964886]
[1749467204936,9.57604193,155.4,155.37,0.14216157]
[1749467206162,26.43074053,155.41,155.37,0.14216157]
[1749467208563,19.99604193,155.41,155.37,28.51001393]
[1749467208863,26.43070668,155.41,155.37,18.933972]
[1749467212647,9.57604193,155.4,155.37,18.933972]
[1749467214268,9.57604193,155.4,155.37,0.14216157]
[1749467214450,9.57604193,155.39,155.36,18.79181043]
[1749467214845,9.57604193,155.39,155.36,18.64964886]
[1749467215043,16.01116163,155.4,155.36,18.64964886]
[1749467217581,9.57604193,155.39,155.36,18.64964886]
[1749467219367,6.43583472,155.38,155.36,18.64964886]
[1749467219580,9.57604193,155.37,155.34,0.28432314]
[1749467219745,9.57604193,155.36,155.34,0.28432314]
[1749467219944,9.57604193,155.37,155.34,0.28432314]
[1749467220665,6.43547849,155.39,155.36,0.14216157]
[1749467221169,16.01152042,155.39,155.36,0.14216157]
[1749467221366,9.57604193,155.38,155.36,0.14216157]
[1749467221945,9.57604193,155.38,155.34,9.7182035]
[1749467221946,9.57604193,155.37,155.34,18.79181043]
[1749467222142,9.57604193,155.37,155.35,0.14216157]
[1749467222645,6.43606146,155.38,155.33,18.64964886]
[1749467222646,9.57604193,155.36,155.33,18.64964886]
[1749467222891,9.57604193,155.34,155.3,18.64964886]
[1749467223094,9.57604193,155.33,155.31,0.14216157]
[1749467223379,9.57604193,155.33,155.29,18.64964886]
[1749467223777,9.57604193,155.33,155.3,0.28432314]
[1749467224101,9.57604193,155.33,155.29,28.22569079]
[1749467224297,9.57604193,155.33,155.3,0.28432314]
[1749467226280,16.01368089,155.34,155.3,0.28432314]
[1749467226488,9.57604193,155.34,155.3,9.86036507]
[1749467226701,16.01317481,155.35,155.3,9.86036507]
[1749467226997,9.57604193,155.35,155.32,18.79181043]
[1749467227368,16.83681724,155.36,155.32,9.7182035]
[1749467227595,16.83672269,155.36,155.32,9.7182035]
[1749467227971,9.57604193,155.35,155.32,0.14216157]
[1749467228176,16.83672269,155.36,155.31,0.14216157]
[1749467228177,16.01435889,155.33,155.31,0.14216157]
[1749467228912,9.57604193,155.32,155.29,18.64964886]
[1749467229204,9.57604193,155.3,155.28,0.14216157]
[1749467229496,9.57604193,155.3,155.27,18.64964886]
[1749467230283,16.01528567,155.3,155.27,18.64964886]
[1749467230483,6.43924374,155.3,155.27,18.64964886]
[1749467230681,9.57604193,155.3,155.27,18.64964886]
[1749467231095,9.57604193,155.31,155.27,18.64964886]
[1749467231687,9.57604193,155.3,155.27,18.64964886]
[1749467232497,9.57604193,155.31,155.27,18.64964886]
[1749467234889,16.0150207,155.31,155.27,18.64964886]
[1749467235609,9.57604193,155.3,155.27,18.64964886]
[1749467237488,16.01529675,155.3,155.27,18.64964886]
[1749467238295,9.57604193,155.29,155.27,18.64964886]
[1749467239513,9.57604193,155.29,155.24,65.76]
[1749467239514,16.01562224,155.29,155.26,18.933972]
[1749467239901,16.01562224,155.29,155.26,0.28432314]
[1749467240098,9.57604193,155.27,155.25,18.64964886]
[1749467240298,9.57604193,155.26,155.25,0.14216157]
[1749467240494,9.57604193,155.26,155.24,18.64964886]
[1749467240700,9.57604193,155.26,155.25,0.14216157]
[1749467241088,9.57604193,155.26,155.24,18.64964886]
[1749467241288,9.57604193,155.25,155.2,18.64964886]
[1749467241640,9.57604193,155.22,155.2,18.64964886]
[1749467241795,9.57604193,155.22,155.21,0.14216157]
[1749467242206,9.57604193,155.22,155.2,18.64964886]
[1749467242526,10.42,155.26,155.23,0.14216157]
[1749467242824,9.57604193,155.27,155.23,9.86036507]
[1749467243125,9.57604193,155.3,155.26,9.57604193]
[1749467243325,9.57604193,155.31,155.27,18.933972]
[1749467245005,16.01478735,155.31,155.27,18.933972]
[1749467245507,9.57604193,155.3,155.27,0.28432314]
[1749467245710,9.57604193,155.29,155.26,0.28432314]
[1749467247396,16.0156337,155.29,155.26,0.28432314]
[1749467247905,9.57604193,155.29,155.26,0.28432314]
[1749467249001,6.43928359,155.3,155.26,0.28432314]
[1749467249002,9.57604193,155.3,155.26,0.28432314]
[1749467249803,9.57604193,155.3,155.27,18.64964886]
[1749467250205,9.57604193,155.3,155.26,0.28432314]
[1749467250514,9.57604193,155.29,155.26,0.28432314]
[1749467252117,16.01570286,155.29,155.26,0.28432314]
[1749467252811,16.01570286,155.29,155.23,46.20194574]
[1749467252812,9.57604193,155.27,155.23,18.64964886]
[1749467253016,9.57604193,155.27,155.23,28.22569079]
[1749467253535,9.57604193,155.26,155.23,18.64964886]
[1749467254095,16.01665618,155.27,155.24,0.14216157]
[1749467254922,16.83972353,155.29,155.24,16.30187665]
[1749467255236,19.97604193,155.29,155.26,18.79181043]
[1749467255435,26.41561015,155.29,155.26,18.79181043]
[1749467256424,26.41561015,155.29,155.26,0.14216157]
[1749467257725,26.41561015,155.29,155.25,0.14216157]
[1749467258516,9.57604193,155.28,155.25,0.14216157]
[1749467261619,16.01611885,155.28,155.25,18.79181043]
[1749467262124,9.57604193,155.28,155.25,18.79181043]
[1749467263814,19.97604193,155.29,155.25,34.80894679]
[1749467264426,19.97604193,155.29,155.25,28.36785236]
[1749467264427,26.41575206,155.29,155.25,28.36785236]
[1749467265039,19.97604193,155.29,155.25,28.36785236]
[1749467265335,19.97604193,155.29,155.25,34.8090378]
[1749467265532,10.4,155.29,155.26,0.14216157]
[1749467265736,10.4,155.29,155.27,18.79181043]
[1749467265939,9.57604193,155.3,155.27,18.79181043]
[1749467267527,32.4388645,155.31,155.27,18.79181043]
[1749467267840,9.57604193,155.3,155.27,18.79181043]
[1749467268343,32.4388645,155.31,155.25,18.79181043]
[1749467268344,9.57604193,155.28,155.25,18.79181043]
[1749467268644,9.57604193,155.28,155.26,0.14216157]
[1749467269056,9.57604193,155.28,155.25,0.14216157]
[1749467269350,9.57604193,155.28,155.25,18.933972]
[1749467270223,6.43915003,155.3,155.27,18.64964886]
[1749467270434,9.57604193,155.28,155.27,18.64964886]
[1749467272945,16.01602132,155.28,155.26,5.530785]
[1749467273146,9.57604193,155.27,155.26,5.530785]
[1749467274650,16.01643608,155.27,155.26,5.530785]
[1749467278035,21.96511815,155.27,155.26,5.530785]
[1749467278552,16.01643608,155.27,155.26,5.530785]
[1749467279046,21.96511815,155.27,155.26,5.530785]
[1749467279251,16.01643608,155.27,155.26,5.530785]
[1749467280657,22.03389939,155.27,155.26,5.530785]
[1749467281442,16.01643608,155.27,155.26,5.530785]
[1749467281643,26.41643608,155.27,155.26,5.530785]
[1749467282429,26.0,155.24,155.16,18.64964886]
[1749467282751,9.57604193,155.17,155.16,18.64964886]
[1749467284260,9.57604193,155.17,155.15,18.64964886]
[1749467286736,9.57604193,155.18,155.15,18.64964886]
[1749467286936,9.57604193,155.19,155.16,0.14216157]
[1749467287260,6.44342275,155.2,155.16,0.14216157]
[1749467287439,9.57604193,155.19,155.16,0.14216157]
[1749467288359,9.57604193,155.19,155.16,0.28432314]
[1749467289972,9.57604193,155.2,155.16,16.30528451]
[1749467290461,9.57604193,155.19,155.16,0.28432314]
[1749467290667,9.57604193,155.19,155.16,6.72923867]
[1749467291239,10.4,155.21,155.16,16.3052806]
[1749467291561,10.4,155.21,155.18,18.79181043]
[1749467291765,10.4,155.21,155.19,0.14216157]
[1749467291954,19.97604193,155.21,155.18,0.14216157]
[1749467292142,9.57604193,155.2,155.18,0.14216157]
[1749467296448,16.01945639,155.2,155.14,31.2546]
[1749467296654,9.57604193,155.19,155.16,0.14216157]
[1749467296853,6.44341446,155.2,155.16,0.14216157]
[1749467297074,9.57604193,155.19,155.16,0.14216157]
[1749467297575,16.01945639,155.2,155.16,9.7182035]
[1749467297743,9.57604193,155.2,155.16,9.7182035]
[1749467298358,9.57604193,155.2,155.16,0.14216157]
[1749467299481,16.01936798,155.2,155.16,0.14216157]
[1749467299880,6.44332605,155.2,155.16,9.7182035]
[1749467300047,16.01936798,155.2,155.16,9.7182035]
[1749467300249,16.01936798,155.2,155.16,0.14216157]
[1749467302048,9.57604193,155.2,155.16,9.7182035]
[1749467302245,9.57604193,155.19,155.16,0.14216157]
[1749467305888,6.44333726,155.2,155.16,0.14216157]
[1749467306182,9.57604193,155.2,155.16,9.7182035]
[1749467306478,16.01939685,155.2,155.16,9.7182035]
[1749467307758,9.57604193,155.2,155.16,9.7182035]
[1749467309566,9.57604193,155.2,155.16,0.14216157]
[1749467309805,16.01958192,155.2,155.16,0.14216157]
[1749467313496,9.57604193,155.19,155.16,0.14216157]
[1749467314799,6.44412939,155.18,155.16,0.14216157]
[1749467315093,9.57604193,155.17,155.14,18.64964886]
[1749467315291,9.57604193,155.16,155.14,18.64964886]
[1749467315489,9.57604193,155.16,155.13,18.64964886]
[1749467315863,9.57604193,155.16,155.14,0.14216157]
[1749467316484,4.78924081,155.18,155.14,9.86036507]
[1749467316734,4.78924081,155.2,155.16,18.933972]
[1749467316863,4.78924081,155.19,155.16,18.933972]
[1749467317061,14.36528274,155.2,155.16,18.933972]
[1749467317294,14.36528274,155.19,155.16,18.933972]
[1749467317469,16.84305554,155.21,155.16,18.933972]
[1749467317470,14.36528274,155.2,155.16,25.37881723]
[1749467317671,4.78924081,155.19,155.16,25.37881723]
[1749467318302,16.84292203,155.21,155.16,25.37881723]
[1749467318303,4.78924081,155.21,155.18,28.51001393]
[1749467318597,9.57604193,155.22,155.18,28.51001393]
[1749467318763,4.78924081,155.21,155.18,28.51001393]
[1749467319200,4.78924081,155.21,155.18,34.95403106]
[1749467319562,6.44209671,155.23,155.18,28.51001393]
[1749467319563,14.36528274,155.22,155.18,28.51001393]
[1749467319768,14.36528274,155.21,155.18,0.14216157]
[1749467320372,4.78924081,155.2,155.18,0.14216157]
[1749467321112,4.78924081,155.21,155.18,0.14216157]
[1749467321283,4.78924081,155.21,155.18,9.7182035]
[1749467321486,4.78924081,155.2,155.18,9.7182035]
[1749467321680,4.78924081,155.21,155.18,9.7182035]
[1749467321881,4.78924081,155.2,155.18,9.7182035]
[1749467322080,14.36528274,155.21,155.18,0.14216157]
[1749467322281,4.78924081,155.2,155.18,0.14216157]
[1749467323505,9.57604193,155.21,155.18,0.14216157]
[1749467323703,4.8216571,155.2,155.18,0.14216157]
[1749467323902,16.01854084,155.22,155.18,0.14216157]
[1749467324086,4.82165606,155.21,155.18,0.14216157]
[1749467324287,4.82165606,155.2,155.18,0.14216157]
[1749467324510,6.44238838,155.23,155.18,0.14216157]
[1749467324697,14.39781517,155.22,155.18,0.14216157]
[1749467324896,4.82177324,155.21,155.18,0.14216157]
[1749467325099,4.82177324,155.2,155.18,0.14216157]
[1749467325320,4.82177324,155.21,155.18,0.14216157]
[1749467325508,4.82177324,155.2,155.18,0.14216157]
[1749467325697,4.82177324,155.21,155.18,0.14216157]
[1749467326010,4.82177324,155.2,155.18,6.58627584]
[1749467326219,9.57604193,155.22,155.18,16.16231777]
[1749467326513,4.8216545,155.21,155.18,16.16231777]
[1749467326818,4.8216545,155.2,155.18,9.7182035]
[1749467327111,9.57604193,155.22,155.18,9.7182035]
[1749467327314,4.82328242,155.21,155.18,9.7182035]
[1749467327508,4.82328242,155.2,155.18,9.7182035]
[1749467327715,9.57604193,155.22,155.18,0.14216157]
[1749467327898,4.82315841,155.21,155.18,0.14216157]
[1749467328089,4.82315841,155.2,155.18,0.14216157]
[1749467328295,16.01864126,155.22,155.18,0.14216157]
[1749467328606,4.82316049,155.21,155.18,0.14216157]
[1749467328802,4.82316049,155.2,155.18,0.14216157]
[1749467329004,16.01864126,155.22,155.18,0.14216157]
[1749467329192,4.82320088,155.21,155.18,0.14216157]
[1749467329388,4.82320088,155.2,155.18,0.14216157]
[1749467329590,16.36655102,155.24,155.18,0.14216157]
[1749467329591,6.44205372,155.23,155.18,0.14216157]
[1749467329790,14.39938809,155.22,155.18,0.14216157]
[1749467330005,4.82334616,155.21,155.18,0.14216157]
[1749467330198,4.82334616,155.2,155.18,0.14216157]
[1749467330509,9.57604193,155.22,155.18,0.14216157]
[1749467330702,4.82371996,155.21,155.18,6.58626342]
[1749467331012,4.82371996,155.2,155.18,16.16230535]
[1749467331211,9.57604193,155.22,155.18,16.16230535]
[1749467331502,4.82365762,155.21,155.18,16.16230535]
[1749467331746,4.82365762,155.2,155.18,16.16230535]
[1749467331886,9.57604193,155.22,155.18,16.16230535]
[1749467332205,4.82416037,155.21,155.18,16.16230535]
[1749467332394,4.82416037,155.2,155.18,16.16230535]
[1749467332595,9.57604193,155.22,155.18,16.16230535]
[1749467332785,4.82390893,155.21,155.18,16.16230535]
[1749467332987,4.82390893,155.2,155.18,16.16230535]
[1749467333188,9.57604193,155.22,155.18,16.16230535]
[1749467333488,4.82398801,155.21,155.18,16.16230535]
[1749467333704,4.82398801,155.2,155.18,15.50500535]
[1749467333908,9.57604193,155.22,155.18,15.50500535]
[1749467334111,4.82404014,155.21,155.19,18.79181043]
[1749467334412,4.82404014,155.2,155.19,18.79181043]
[1749467335826,4.82404014,155.2,155.19,18.933972]
[1749467339132,4.82404014,155.2,155.19,25.37768615]
[1749467340323,4.82404014,155.2,155.19,18.933972]
[1749467341418,4.82404014,155.2,155.19,34.95372808]
[1749467341733,4.82404014,155.23,155.2,6.58534081]
[1749467341910,4.82404014,155.22,155.2,6.58534081]
[1749467342114,4.82404014,155.21,155.2,25.37715124]
[1749467342334,4.82404014,155.23,155.2,25.37715124]
[1749467342508,4.82404014,155.22,155.2,18.933972]
[1749467342708,14.40008207,155.21,155.2,18.64964886]
[1749467343814,26.82951692,155.21,155.16,0.28432314]
[1749467344016,9.57604193,155.19,155.16,18.933972]
[1749467344327,4.82404014,155.18,155.16,18.933972]
[1749467344530,4.82283744,155.2,155.18,18.933972]
[1749467344707,9.57604193,155.22,155.18,18.933972]
[1749467344902,4.82267102,155.21,155.18,28.51001393]
[1749467345110,4.82267102,155.2,155.18,28.51001393]
[1749467345425,14.39899373,155.19,155.16,0.14216157]
[1749467345609,14.39899373,155.18,155.16,0.28432314]
[1749467345929,14.39958623,155.17,155.13,18.64964886]
[1749467346106,6.444148,155.18,155.13,18.64964886]
[1749467346107,14.39958623,155.16,155.13,18.64964886]
[1749467346306,9.57604193,155.16,155.14,0.28432314]
[1749467346522,9.57604193,155.16,155.14,0.14216157]
[1749467346843,9.57604193,155.16,155.14,0.28432314]
[1749467347001,14.39916818,155.17,155.14,0.28432314]
[1749467347200,4.82312625,155.16,155.14,0.28432314]
[1749467347419,9.57604193,155.17,155.14,0.28432314]
[1749467347628,4.82279255,155.16,155.14,0.28432314]
[1749467347801,9.57604193,155.17,155.14,0.28432314]
[1749467348008,4.82269953,155.16,155.14,0.28432314]
[1749467348209,4.82245121,155.16,155.14,0.28432314]
[1749467348423,4.82198794,155.16,155.14,0.28432314]
[1749467348805,9.57604193,155.17,155.14,0.28432314]
[1749467349235,9.57604193,155.17,155.14,6.73005516]
[1749467349428,9.57604193,155.17,155.14,0.28432314]
[1749467350323,14.39729295,155.16,155.14,0.28432314]
[1749467350509,14.39729295,155.15,155.1,9.57604193]
[1749467350710,9.57604193,155.15,155.11,18.64964886]
[1749467351124,14.39762971,155.15,155.12,0.28432314]
[1749467351338,9.57604193,155.15,155.12,0.14216157]
[1749467351644,4.82158778,155.15,155.12,6.58871504]
[1749467351805,14.39762971,155.17,155.14,0.14216157]
[1749467352010,9.57604193,155.17,155.14,0.14216157]
[1749467352223,9.57604193,155.16,155.13,18.79181043]
[1749467352428,9.57604193,155.14,155.12,18.64964886]
[1749467352615,9.57604193,155.13,155.07,6.4483789]
[1749467352816,9.57604193,155.1,155.07,6.4483789]
[1749467353610,9.57604193,155.1,155.08,18.64964886]
[1749467354536,9.57604193,155.11,155.08,6.44815177]
[1749467354731,9.57604193,155.11,155.08,0.28432314]
[1749467355242,9.57604193,155.09,155.06,12.5]
[1749467355536,58.59059411,155.13,155.07,18.64964886]
[1749467355537,9.57604193,155.08,155.07,18.64964886]
[1749467355842,4.82015346,155.12,155.07,18.64964886]
[1749467355843,9.57604193,155.09,155.07,18.64964886]
[1749467357337,9.57604193,155.1,155.07,18.64964886]
[1749467357536,9.57604193,155.1,155.07,25.09834003]
[1749467357713,70.9285,155.13,155.08,0.28432314]
[1749467357714,9.57604193,155.11,155.08,0.28432314]
[1749467357915,9.57604193,155.12,155.08,9.86036507]
[1749467358224,9.57604193,155.13,155.1,18.933972]
[1749467359642,9.57604193,155.13,155.1,0.28432314]
[1749467360830,9.57604193,155.13,155.1,18.933972]
[1749467361760,9.57604193,155.12,155.1,18.933972]
[1749467363030,10.38,155.14,155.1,6.73163856]
[1749467363218,12.2908,155.18,155.14,18.64964886]
[1749467363219,10.38,155.18,155.14,18.64964886]
[1749467363418,9.57604193,155.17,155.14,18.64964886]
[1749467363642,19.95604193,155.18,155.15,0.28432314]
[1749467363949,9.57604193,155.17,155.16,18.64964886]
[1749467364257,9.57604193,155.17,155.14,0.28432314]
[1749467364435,9.57604193,155.16,155.14,0.28432314]
[1749467365323,10.38,155.18,155.14,0.28432314]
[1749467365525,9.57604193,155.17,155.14,0.28432314]
[1749467365935,9.57604193,155.17,155.12,34.67215835]
[1749467366132,9.57604193,155.16,155.13,0.28432314]
[1749467367037,9.57604193,155.17,155.13,0.28432314]
[1749467369037,9.57604193,155.17,155.13,6.73050404]
[1749467369349,9.57604193,155.17,155.13,0.28432314]
[1749467370148,9.57604193,155.16,155.13,0.28432314]
[1749467370352,21.62909501,155.18,155.13,0.28432314]
[1749467370551,9.57604193,155.17,155.13,6.73043669]
[1749467370732,9.57604193,155.17,155.13,0.28432314]
[1749467371638,9.57604193,155.16,155.13,0.28432314]
[1749467373655,9.57604193,155.16,155.11,18.5396]
[1749467373656,9.57604193,155.14,155.11,18.933972]
[1749467373955,9.57604193,155.13,155.11,18.64964886]
[1749467374260,9.57604193,155.13,155.1,18.933972]
[1749467374946,9.57604193,155.14,155.1,34.95746688]
[1749467375527,15.18492824,155.18,155.13,9.57604193]
[1749467375832,9.57604193,155.19,155.14,9.86036507]
[1749467376031,9.57604193,155.19,155.16,18.64964886]
[1749467376628,10.36,155.2,155.16,18.64964886]
[1749467376854,9.57604193,155.19,155.16,18.64964886]
[1749467377233,10.36,155.2,155.16,25.09460051]
[1749467377432,9.57604193,155.19,155.16,18.64964886]
[1749467378481,32.00682969,155.23,155.19,18.64964886]
[1749467378482,4.80492824,155.22,155.19,18.64964886]
[1749467378630,6.00682969,155.23,155.19,18.933972]
[1749467378631,14.38097017,155.23,155.19,18.933972]
[1749467378829,9.57604193,155.21,155.19,18.64964886]
[1749467379061,9.57604193,155.2,155.17,0.28432314]
[1749467379287,9.57604193,155.18,155.17,0.28432314]
[1749467379451,9.57604193,155.18,155.16,18.64964886]
[1749467379848,9.57604193,155.19,155.16,25.09454559]
[1749467380048,9.57604193,155.2,155.16,25.09455106]
[1749467380360,9.57604193,155.2,155.16,34.67059299]
[1749467380579,4.80492824,155.21,155.17,9.86036507]
[1749467380757,46.16207373,155.23,155.17,16.30455484]
[1749467380758,9.57604193,155.22,155.17,16.30455484]
[1749467380948,14.38097017,155.22,155.17,16.30455484]
[1749467381150,9.57604193,155.22,155.17,16.30455484]
[1749467381380,9.57604193,155.22,155.19,18.64964886]
[1749467381967,9.57604193,155.22,155.18,9.57604193]
[1749467381968,9.57604193,155.22,155.17,16.30455484]
[1749467382652,9.57604193,155.22,155.19,18.933972]
[1749467383158,14.38097017,155.22,155.19,18.933972]
[1749467383481,9.57604193,155.22,155.19,18.933972]
[1749467383678,14.38097017,155.22,155.19,18.933972]
[1749467383982,9.57604193,155.22,155.19,18.933972]
[1749467384189,14.38097017,155.23,155.19,25.37763607]
[1749467384492,14.38097017,155.23,155.19,18.933972]
[1749467384982,9.57604193,155.23,155.19,18.933972]
[1749467385651,16.01814405,155.23,155.19,18.933972]
[1749467386178,9.57604193,155.22,155.19,18.933972]
[1749467387568,11.24671345,155.24,155.19,0.28432314]
[1749467387776,9.57604193,155.23,155.19,9.57604193]
[1749467387963,9.57604193,155.22,155.16,18.933972]
[1749467388167,9.57604193,155.21,155.17,0.28432314]
[1749467389189,9.57604193,155.21,155.13,142.2066]
[1749467389190,9.57604193,155.19,155.14,28.22569079]
[1749467389360,9.57604193,155.19,155.16,18.64964886]
[1749467389561,9.57604193,155.2,155.16,18.64964886]
[1749467390497,9.57604193,155.2,155.16,34.67063375]
[1749467392178,16.01944452,155.2,155.16,28.22569079]
[1749467392374,9.57604193,155.2,155.16,28.22569079]
[1749467392875,4.80492824,155.23,155.19,9.57604193]
[1749467393065,9.57604193,155.24,155.2,18.64964886]
[1749467393386,9.57604193,155.23,155.19,0.28432314]
[1749467394782,16.01813649,155.23,155.19,0.28432314]
[1749467394986,9.57604193,155.22,155.19,0.28432314]
[1749467395468,6.44209456,155.23,155.2,18.64964886]
[1749467395788,16.01784707,155.24,155.2,18.64964886]
[1749467396154,9.57604193,155.23,155.2,18.64964886]
[1749467396679,6.44180514,155.24,155.2,18.64964886]
[1749467396884,19.93604193,155.25,155.21,18.933972]
[1749467397890,9.57604193,155.24,155.21,18.933972]
[1749467398777,9.57604193,155.24,155.21,25.37678236]
[1749467399372,9.57604193,155.24,155.21,18.933972]
[1749467399687,10.36,155.25,155.22,28.22569079]
[1749467400182,9.57604193,155.28,155.24,9.57604193]
[1749467400490,31.18068726,155.29,155.24,9.57604193]
[1749467400790,16.01643608,155.27,155.23,0.28432314]
[1749467401083,9.57604193,155.26,155.23,0.28432314]
[1749467401291,6.44011108,155.28,155.24,18.64964886]
[1749467401465,9.57604193,155.27,155.24,18.64964886]
[1749467401661,11.24464408,155.29,155.24,18.64964886]
[1749467401996,9.57604193,155.25,155.23,0.28432314]
[1749467402203,9.57604193,155.24,155.2,18.64964886]
[1749467402379,9.57604193,155.23,155.21,0.28432314]
[1749467403077,16.01770346,155.24,155.21,0.28432314]
[1749467404171,9.57604193,155.22,155.17,6.44449995]
[1749467404486,9.57604193,155.21,155.19,0.14216157]
[1749467405262,9.57604193,155.21,155.19,0.28432314]
[1749467405876,9.57604193,155.23,155.19,0.28432314]
[1749467406078,14.38097017,155.24,155.21,0.28432314]
[1749467406369,9.57604193,155.24,155.21,0.28432314]
[1749467408077,9.57604193,155.24,155.22,18.64964886]
[1749467408392,10.36,155.25,155.23,0.28432314]
[1749467409796,9.57604193,155.26,155.23,0.28432314]
[1749467410498,30.80492824,155.28,155.23,0.28432314]
[1749467410499,37.24506003,155.28,155.23,6.72630812]
[1749467410721,9.57604193,155.27,155.24,18.64964886]
[1749467411021,4.80492824,155.28,155.25,0.28432314]
[1749467411218,9.57604193,155.27,155.25,0.28432314]
[1749467411620,9.57604193,155.26,155.25,0.28432314]
[1749467412095,9.57604193,155.27,155.25,0.28432314]
[1749467412797,21.60463474,155.29,155.26,18.64964886]
[1749467412798,9.57604193,155.28,155.26,18.64964886]
[1749467413318,10.36,155.29,155.25,0.28432314]
[1749467413319,9.57604193,155.27,155.25,0.28432314]
[1749467414826,6.43960829,155.29,155.25,0.28432314]
[1749467415004,9.57604193,155.27,155.25,0.28432314]
[1749467415519,9.57604193,155.26,155.23,18.933972]
[1749467415907,9.57604193,155.27,155.23,28.51001393]
[1749467416303,9.57604193,155.27,155.23,34.9519525]
[1749467416499,9.57604193,155.28,155.23,34.9519525]
[1749467417417,9.57604193,155.27,155.23,34.9519525]
[1749467420225,9.57604193,155.28,155.25,0.28432314]
[1749467421498,9.57604193,155.27,155.25,18.933972]
[1749467422124,9.57604193,155.27,155.25,0.28432314]
[1749467422827,9.57604193,155.26,155.21,23.76837001]
[1749467423034,9.57604193,155.24,155.22,18.64964886]
[1749467423403,9.57604193,155.24,155.23,0.14216157]
[1749467423602,9.57604193,155.25,155.23,18.933972]
[1749467424513,9.57604193,155.26,155.23,18.933972]
[1749467425906,9.57604193,155.28,155.24,9.57604193]
[1749467426124,9.57604193,155.26,155.24,18.933972]
[1749467427529,9.57604193,155.26,155.24,0.28432314]
[1749467436212,14.38097017,155.25,155.21,25.37685477]
[1749467436415,9.57604193,155.25,155.21,34.9528967]
[1749467436733,14.38097017,155.26,155.21,34.9528967]
[1749467437326,20.82184402,155.26,155.21,34.9528967]
[1749467437642,9.57604193,155.24,155.21,18.933972]
[1749467437826,4.80492824,155.25,155.21,25.37683484]
[1749467438141,10.36,155.28,155.24,0.28432314]
[1749467438142,14.38097017,155.26,155.24,0.28432314]
[1749467438439,14.38097017,155.27,155.24,0.28432314]
[1749467438649,20.8328176,155.27,155.24,0.28432314]
[1749467439137,20.83287595,155.27,155.24,0.28432314]
[1749467439327,16.01645594,155.27,155.24,0.28432314]
[1749467439827,4.81706708,155.26,155.24,0.28432314]
[1749467440245,20.8333885,155.27,155.24,0.28432314]
[1749467440428,4.81759267,155.27,155.24,0.28432314]
[1749467440945,14.3936346,155.27,155.24,0.28432314]
[1749467441121,9.57604193,155.27,155.24,0.28432314]
[1749467441322,9.57604193,155.27,155.23,34.66740915]
[1749467441323,4.81759267,155.26,155.23,18.933972]